[Event "Francophonie-ch"]
[Site "Yamoussoukro CIV"]
[Date "2023.07.11"]
[Round "8.2"]
[White "Chiku-Ratte, Olivier-Kenta"]
[Black "Sambuev, Bator"]
[Result "0-1"]
[ECO "E14"]
[WhiteElo "2318"]
[BlackElo "2457"]
[PlyCount "78"]
[EventDate "2023.07.02"]
[EventType "swiss"]
[EventRounds "9"]
[EventCountry "IVO"]
[Source "ChessMix"]
[SourceDate "2023.07.20"]
[TimeControl "5400+30"]

1. d4 {[%emt 0:00:03]} Nf6 {[%emt 0:00:10]} 2. c4 {[%emt 0:00:08]} e6 {
[%emt 0:00:14]} 3. Nf3 {[%emt 0:00:05]} d5 {[%emt 0:00:06]} 4. e3 {
[%emt 0:00:05]} Be7 {[%emt 0:07:26]} 5. Bd3 {[%emt 0:00:51]} O-O {
[%emt 0:00:19]} 6. O-O {[%emt 0:00:10]} b6 {[%emt 0:00:43]} 7. Nc3 {
[%emt 0:01:57]} Bb7 {[%emt 0:03:40]} 8. cxd5 {[%emt 0:00:28]} exd5 {
[%emt 0:00:22]} 9. b3 {[%emt 0:00:36]} Nbd7 {[%emt 0:06:53]} 10. Bb2 {
[%emt 0:00:20]} Re8 {[%emt 0:03:15]} 11. Rc1 {[%emt 0:01:34]} a6 {
[%emt 0:05:23]} 12. Ne2 {[%emt 0:07:11]} Bd6 {[%emt 0:01:35]} 13. Nf4 {
[%emt 0:13:10]} Ne4 {[%emt 0:08:53]} 14. Be2 {[%emt 0:02:06]} Rc8 {
[%emt 0:10:51]} 15. Nd3 {[%emt 0:05:42]} c5 {[%emt 0:02:51]} 16. Nfe5 {
[%emt 0:10:30]} cxd4 {[%emt 0:05:37]} 17. exd4 {[%emt 0:04:42]} f6 {
[%emt 0:05:25]} 18. Nxd7 {[%emt 0:12:21]} Qxd7 {[%emt 0:00:42]} 19. Bg4 {
[%emt 0:04:01]} Rxc1 {[%emt 0:01:41]} 20. Bxd7 {[%emt 0:01:45]} Rxd1 {
[%emt 0:00:08]} 21. Rxd1 {[%emt 0:00:03]} Re7 {[%emt 0:00:08]} 22. Bg4 {
[%emt 0:00:15]} a5 {[%emt 0:01:33]} 23. f3 {[%emt 0:05:22]} Ng5 {[%emt 0:00:56]
} 24. Bc1 {[%emt 0:04:46]} Ne6 {[%emt 0:03:52]} 25. Bxe6+ {[%emt 0:04:50]} Rxe6
{[%emt 0:01:19]} 26. Bf4 {[%emt 0:00:49]} Ba3 {[%emt 0:01:27]} 27. Bc1 {
[%emt 0:05:56]} Bf8 {[%emt 0:00:14]} 28. Nf4 {[%emt 0:01:17]} Re8 {
[%emt 0:00:31]} 29. Bd2 {[%emt 0:00:07]} g5 {[%emt 0:03:29]} 30. Nh5 {
[%emt 0:00:13]} Kf7 {[%emt 0:00:07]} 31. Ng3 {[%emt 0:06:57]} Kg6 {
[%emt 0:05:05]} 32. Kf2 {[%emt 0:00:26]} Ba3 {[%emt 0:01:05]} 33. Bc1 {
[%emt 0:04:46]} Bd6 {[%emt 0:00:30]} 34. h4 {[%emt 0:01:38]} gxh4 {
[%emt 0:01:43]} 35. Ne2 {[%emt 0:00:29]} Ba6 {[%emt 0:01:36]} 36. Nf4+ {
[%emt 0:00:36]} Kf5 {[%emt 0:00:28]} 37. Nxd5 {[%emt 0:02:01]} Bg3+ {
[%emt 0:00:23]} 38. Kg1 {[%emt 0:00:01]} Be2 {[%emt 0:00:17]} 39. Rd2 {
[%emt 0:01:10]} Bc4 {[%emt 0:00:23]} 0-1

[Event "Charlotte Spring IM-B"]
[Site "Charlotte USA"]
[Date "2023.03.18"]
[Round "6.5"]
[White "Vanapalli, Vishnu"]
[Black "Chiku-Ratte, Olivier-Kenta"]
[Result "1-0"]
[ECO "C55"]
[WhiteElo "2226"]
[BlackElo "2301"]
[PlyCount "157"]
[EventDate "2023.03.14"]
[EventType "tourn"]
[EventRounds "9"]
[EventCountry "USA"]
[Source "ChessMix"]
[SourceDate "2023.03.20"]
[TimeControl "5400+30"]

1. e4 {[%emt 0:00:57]} e5 {[%emt 0:00:18]} 2. Nf3 {[%emt 0:00:11]} Nc6 {
[%emt 1:31:12]} 3. Bc4 {[%emt 0:02:19]} Nf6 {[%emt 0:00:00]} 4. d3 {
[%emt 0:00:12]} h6 {[%emt 0:00:00]} 5. O-O {[%emt 0:00:15]} d6 {[%emt 0:00:00]}
6. c3 {[%emt 0:01:04]} g6 {[%emt 0:00:00]} 7. d4 {[%emt 0:01:39]} Qe7 {
[%emt 0:00:00]} 8. Re1 {[%emt 0:03:13]} Bg7 {[%emt 0:00:00]} 9. Nbd2 {
[%emt 0:01:53]} O-O {[%emt 0:00:00]} 10. h3 {[%emt 0:00:17]} a6 {[%emt 0:00:00]
} 11. a4 {[%emt 0:09:53]} exd4 {[%emt 0:00:00]} 12. cxd4 {[%emt 0:00:31]} Nd7 {
[%emt 0:00:00]} 13. Nf1 {[%emt 0:03:50]} Nb6 {[%emt 0:00:00]} 14. Bb3 {
[%emt 0:05:47]} a5 {[%emt 0:00:00]} 15. Be3 {[%emt 0:08:10]} Qd8 {
[%emt 0:00:00]} 16. Ng3 {[%emt 0:03:17]} d5 {[%emt 0:00:00]} 17. e5 {
[%emt 0:08:17]} Nc4 {[%emt 0:00:00]} 18. Bxc4 {[%emt 0:04:45]} dxc4 {
[%emt 0:00:00]} 19. Qc1 {[%emt 0:01:11]} Nb4 {[%emt 0:00:00]} 20. Qxc4 {
[%emt 0:04:38]} Be6 {[%emt 0:00:00]} 21. Qe2 {[%emt 0:00:24]} Bd5 {
[%emt 0:00:00]} 22. Rec1 {[%emt 0:03:47]} Qd7 {[%emt 0:00:00]} 23. Nd2 {
[%emt 0:01:44]} f5 {[%emt 0:00:00]} 24. exf6 {[%emt 0:02:32]} Rxf6 {
[%emt 0:00:00]} 25. Nc4 {[%emt 0:02:45]} Nc6 {[%emt 0:11:30]} 26. Ne5 {
[%emt 0:03:08]} Nxe5 {[%emt 0:00:30]} 27. dxe5 {[%emt 0:01:15]} Rc6 {
[%emt 0:00:00]} 28. f4 {[%emt 0:02:19]} Rxc1+ {[%emt 0:00:00]} 29. Rxc1 {
[%emt 0:00:42]} Bc6 {[%emt 0:00:00]} 30. Qc2 {[%emt 0:09:00]} Qe6 {
[%emt 0:00:00]} 31. Rd1 {[%emt 0:00:39]} Rf8 {[%emt 0:00:00]} 32. Ne2 {
[%emt 0:02:56]} Qf7 {[%emt 0:00:00]} 33. Nc3 {[%emt 0:01:57]} g5 {
[%emt 0:00:00]} 34. fxg5 {[%emt 0:01:06]} hxg5 {[%emt 0:00:00]} 35. Bxg5 {
[%emt 0:04:06]} Bxe5 {[%emt 0:00:00]} 36. Qe2 {[%emt 0:03:58]} Qf5 {
[%emt 0:00:00]} 37. Be3 {[%emt 0:00:31]} Qg6 {[%emt 0:00:00]} 38. Bd4 {
[%emt 0:02:56]} Bd6 {[%emt 0:00:00]} 39. Rd3 {[%emt 0:00:56]} Bf4 {
[%emt 0:00:00]} 40. Qg4 {[%emt 0:00:58]} Qxg4 {[%emt 0:00:00]} 41. hxg4 {
[%emt 0:00:02]} Kh7 {[%emt 0:00:00]} 42. Ne2 {[%emt 0:00:47]} Bd6 {
[%emt 0:00:31]} 43. b3 {[%emt 0:00:21]} Kg6 {[%emt 0:07:59]} 44. Re3 {
[%emt 0:00:22]} Kg5 {[%emt 0:00:00]} 45. Be5 {[%emt 0:00:07]} Bc5 {
[%emt 0:00:00]} 46. Bd4 {[%emt 0:00:05]} Bd6 {[%emt 0:00:00]} 47. Be5 {
[%emt 0:00:07]} Bb4 {[%emt 0:00:02]} 48. Nd4 {[%emt 0:00:08]} Bd5 {
[%emt 0:01:19]} 49. Bxc7 {[%emt 0:00:44]} Kxg4 {[%emt 0:00:07]} 50. Re5 {
[%emt 0:01:01]} Rc8 {[%emt 0:01:08]} 51. Bxa5 {[%emt 0:01:20]} Bxa5 {
[%emt 0:00:38]} 52. Rxd5 {[%emt 0:00:06]} Bb6 {[%emt 0:00:21]} 53. Kf1 {
[%emt 0:00:30]} Rc3 {[%emt 0:00:24]} 54. Ke2 {[%emt 0:00:55]} Rg3 {
[%emt 0:00:09]} 55. Rd6 {[%emt 0:00:40]} Rxg2+ {[%emt 0:00:44]} 56. Kf1 {
[%emt 0:00:32]} Rd2 {[%emt 0:00:12]} 57. Rg6+ {[%emt 0:00:34]} Kf4 {
[%emt 0:00:28]} 58. Ne2+ {[%emt 0:00:17]} Ke3 {[%emt 0:01:04]} 59. Re6+ {
[%emt 0:00:05]} Kf3 {[%emt 0:00:06]} 60. Rf6+ {[%emt 0:00:03]} Ke3 {
[%emt 0:00:05]} 61. Rxb6 {[%emt 0:00:04]} Rd1+ {[%emt 0:01:26]} 62. Kg2 {
[%emt 0:00:04]} Kxe2 {[%emt 0:01:17]} 63. Re6+ {[%emt 0:01:10]} Kd3 {
[%emt 0:00:00]} 64. Rd6+ {[%emt 0:00:16]} Kc2 {[%emt 0:00:00]} 65. Rxd1 {
[%emt 0:00:18]} Kxd1 {[%emt 0:00:41]} 66. b4 {[%emt 0:00:21]} Kc2 {
[%emt 0:00:47]} 67. a5 {[%emt 0:00:13]} Kb3 {[%emt 0:00:25]} 68. b5 {
[%emt 0:00:05]} Kb4 {[%emt 0:00:24]} 69. a6 {[%emt 0:00:04]} b6 {[%emt 0:00:04]
} 70. a7 {[%emt 0:00:05]} Kxb5 {[%emt 0:00:15]} 71. a8=Q {[%emt 0:00:07]} Kb4 {
[%emt 0:00:04]} 72. Qe4+ {[%emt 0:00:10]} Ka5 {[%emt 0:00:10]} 73. Kf3 {
[%emt 0:00:07]} b5 {[%emt 0:00:07]} 74. Ke2 {[%emt 0:00:05]} b4 {[%emt 0:00:05]
} 75. Qc2 {[%emt 0:00:12]} Kb5 {[%emt 0:00:05]} 76. Qb3 {[%emt 0:00:05]} Kc5 {
[%emt 0:03:53]} 77. Kd3 {[%emt 0:00:05]} Kb5 {[%emt 0:00:00]} 78. Kd4 {
[%emt 0:00:05]} Ka5 {[%emt 0:00:00]} 79. Kc5 {[%emt 0:00:12]} 1-0

[Event "Charlotte Spring IM-B"]
[Site "Charlotte USA"]
[Date "2023.03.19"]
[Round "7.1"]
[White "Chiku-Ratte, Olivier-Kenta"]
[Black "Adamson, Robby"]
[Result "1-0"]
[ECO "E11"]
[WhiteElo "2301"]
[BlackElo "2265"]
[PlyCount "109"]
[EventDate "2023.03.14"]
[EventType "tourn"]
[EventRounds "9"]
[EventCountry "USA"]
[Source "ChessMix"]
[SourceDate "2023.03.20"]
[TimeControl "5400+30"]

1. Nf3 {[%emt 0:05:56]} d5 {[%emt 0:00:06]} 2. d4 {[%emt 0:00:16]} Nf6 {
[%emt 0:00:08]} 3. c4 {[%emt 0:00:05]} e6 {[%emt 0:00:19]} 4. g3 {
[%emt 0:00:03]} Bb4+ {[%emt 0:00:07]} 5. Bd2 {[%emt 0:00:18]} Be7 {
[%emt 0:00:15]} 6. Qc2 {[%emt 0:00:09]} O-O {[%emt 0:00:28]} 7. Bg2 {
[%emt 0:00:02]} c6 {[%emt 0:00:07]} 8. O-O {[%emt 0:00:05]} Nbd7 {
[%emt 0:00:03]} 9. Bf4 {[%emt 0:00:14]} b6 {[%emt 0:00:11]} 10. Nbd2 {
[%emt 0:03:00]} Nh5 {[%emt 0:03:33]} 11. cxd5 {[%emt 0:01:19]} Nxf4 {
[%emt 0:01:22]} 12. gxf4 {[%emt 0:00:05]} cxd5 {[%emt 0:00:25]} 13. Rfc1 {
[%emt 0:00:19]} Ba6 {[%emt 0:12:03]} 14. e3 {[%emt 0:00:17]} Rc8 {
[%emt 0:10:09]} 15. Qa4 {[%emt 0:00:27]} Nb8 {[%emt 0:00:00]} 16. Bf1 {
[%emt 0:03:13]} Bxf1 {[%emt 0:03:04]} 17. Kxf1 {[%emt 0:00:15]} Qd7 {
[%emt 0:00:10]} 18. Qb3 {[%emt 0:01:17]} Nc6 {[%emt 0:01:58]} 19. Qb5 {
[%emt 0:01:32]} Nb8 {[%emt 0:08:03]} 20. Qxd7 {[%emt 0:05:07]} Nxd7 {
[%emt 0:02:02]} 21. Ne5 {[%emt 0:00:14]} Nb8 {[%emt 0:04:15]} 22. Ke2 {
[%emt 0:02:00]} f6 {[%emt 0:00:24]} 23. Nd3 {[%emt 0:00:18]} Bd6 {
[%emt 0:07:58]} 24. h3 {[%emt 0:01:01]} Kf7 {[%emt 0:00:39]} 25. a4 {
[%emt 0:02:16]} Rxc1 {[%emt 0:02:04]} 26. Rxc1 {[%emt 0:00:45]} Na6 {
[%emt 0:06:02]} 27. a5 {[%emt 0:06:04]} Ke7 {[%emt 0:01:56]} 28. axb6 {
[%emt 0:02:46]} axb6 {[%emt 0:00:08]} 29. f3 {[%emt 0:00:23]} Kd7 {
[%emt 0:01:55]} 30. Rg1 {[%emt 0:02:05]} Rf7 {[%emt 0:00:25]} 31. h4 {
[%emt 0:02:13]} Nb8 {[%emt 0:05:20]} 32. e4 {[%emt 0:03:38]} Nc6 {
[%emt 0:00:52]} 33. Ke3 {[%emt 0:00:36]} Ne7 {[%emt 0:08:06]} 34. h5 {
[%emt 0:03:24]} Bc7 {[%emt 0:02:33]} 35. Nf1 {[%emt 0:03:57]} Bd6 {
[%emt 0:02:48]} 36. Nh2 {[%emt 0:01:06]} Nc6 {[%emt 0:02:28]} 37. Ng4 {
[%emt 0:00:56]} Bc7 {[%emt 0:02:01]} 38. h6 {[%emt 0:06:01]} g6 {[%emt 0:00:23]
} 39. Rc1 {[%emt 0:01:15]} Bd6 {[%emt 0:05:28]} 40. e5 {[%emt 0:02:23]} Ne7 {
[%emt 0:05:40]} 41. exd6 {[%emt 0:16:08]} Nf5+ {[%emt 0:00:23]} 42. Kf2 {
[%emt 0:00:10]} Kxd6 {[%emt 0:00:03]} 43. Rc8 {[%emt 0:02:22]} Nxd4 {
[%emt 0:00:33]} 44. Rd8+ {[%emt 0:01:08]} Kc7 {[%emt 0:00:30]} 45. Ra8 {
[%emt 0:03:13]} Kb7 {[%emt 0:00:51]} 46. Re8 {[%emt 0:01:59]} Kc7 {
[%emt 0:00:26]} 47. Ne3 {[%emt 0:04:32]} Kd7 {[%emt 0:01:01]} 48. Rg8 {
[%emt 0:00:54]} Nc6 {[%emt 0:00:27]} 49. Ng4 {[%emt 0:01:50]} Ke7 {
[%emt 0:02:50]} 50. Rc8 {[%emt 0:00:39]} Nd4 {[%emt 0:01:44]} 51. Rb8 {
[%emt 0:00:41]} b5 {[%emt 0:00:21]} 52. Rb6 {[%emt 0:01:24]} Kd7 {
[%emt 0:00:46]} 53. Ra6 {[%emt 0:00:46]} Kc8 {[%emt 0:00:32]} 54. b4 {
[%emt 0:00:44]} Kb8 {[%emt 0:00:23]} 55. Nc5 {[%emt 0:00:14]} 1-0

[Event "Charlotte Spring IM-B"]
[Site "Charlotte USA"]
[Date "2023.03.19"]
[Round "8.5"]
[White "Chiku-Ratte, Olivier-Kenta"]
[Black "Georgiev, Vladimir"]
[Result "1/2-1/2"]
[ECO "D35"]
[WhiteElo "2301"]
[BlackElo "2404"]
[PlyCount "50"]
[EventDate "2023.03.14"]
[EventType "tourn"]
[EventRounds "9"]
[EventCountry "USA"]
[Source "ChessMix"]
[SourceDate "2023.03.20"]
[TimeControl "5400+30"]

1. d4 {[%emt 0:08:45]} Nf6 {[%emt 0:02:57]} 2. c4 {[%emt 0:00:06]} e6 {
[%emt 0:00:05]} 3. Nc3 {[%emt 0:00:44]} d5 {[%emt 0:01:35]} 4. cxd5 {
[%emt 0:00:16]} exd5 {[%emt 0:00:05]} 5. Bg5 {[%emt 0:00:05]} c6 {
[%emt 0:00:16]} 6. e3 {[%emt 0:00:11]} Bd6 {[%emt 0:00:16]} 7. Bd3 {
[%emt 0:00:57]} h6 {[%emt 0:00:16]} 8. Bh4 {[%emt 0:00:36]} O-O {[%emt 0:00:13]
} 9. Qc2 {[%emt 0:00:39]} a5 {[%emt 0:00:14]} 10. Nf3 {[%emt 0:04:59]} Re8 {
[%emt 0:00:58]} 11. O-O {[%emt 0:02:37]} Na6 {[%emt 0:01:02]} 12. a3 {
[%emt 0:01:20]} Bg4 {[%emt 0:01:29]} 13. Nd2 {[%emt 0:01:06]} Bd7 {
[%emt 0:00:38]} 14. Bh7+ {[%emt 0:06:16]} Kh8 {[%emt 0:00:43]} 15. Bf5 {
[%emt 0:00:16]} Be6 {[%emt 0:02:04]} 16. Bg3 {[%emt 0:03:14]} Bxg3 {
[%emt 0:03:20]} 17. hxg3 {[%emt 0:00:16]} Nc7 {[%emt 0:00:42]} 18. Na4 {
[%emt 0:00:32]} Bxf5 {[%emt 0:01:20]} 19. Qxf5 {[%emt 0:00:27]} Nb5 {
[%emt 0:06:21]} 20. Nc5 {[%emt 0:04:31]} Nd6 {[%emt 0:02:42]} 21. Qf4 {
[%emt 0:01:28]} a4 {[%emt 0:04:05]} 22. Rac1 {[%emt 0:02:19]} Qe7 {
[%emt 0:04:44]} 23. Nd3 {[%emt 0:01:30]} g5 {[%emt 0:01:46]} 24. Qf3 {
[%emt 0:00:58]} Nfe4 {[%emt 0:00:07]} 25. Rfd1 {[%emt 0:02:53]} Ra5 {
[%emt 0:07:03]} 1/2-1/2

[Event "Charlotte Spring IM-B"]
[Site "Charlotte USA"]
[Date "2023.03.20"]
[Round "9.2"]
[White "Amburgy, Ryan"]
[Black "Chiku-Ratte, Olivier-Kenta"]
[Result "1/2-1/2"]
[ECO "E08"]
[WhiteElo "2242"]
[BlackElo "2301"]
[PlyCount "286"]
[EventDate "2023.03.14"]
[EventType "tourn"]
[EventRounds "9"]
[EventCountry "USA"]
[Source "ChessMix"]
[SourceDate "2023.03.20"]
[TimeControl "5400+30"]

1. d4 {[%emt 0:00:02]} d5 {[%emt 0:00:20]} 2. c4 {[%emt 0:00:05]} c6 {
[%emt 0:00:04]} 3. Nf3 {[%emt 0:00:04]} Nf6 {[%emt 0:00:05]} 4. Nc3 {
[%emt 0:00:07]} e6 {[%emt 0:00:47]} 5. g3 {[%emt 0:00:19]} Be7 {[%emt 0:03:36]}
6. Bg2 {[%emt 0:00:11]} O-O {[%emt 0:00:06]} 7. O-O {[%emt 0:00:31]} b6 {
[%emt 0:01:37]} 8. Nd2 {[%emt 0:01:43]} Ba6 {[%emt 0:01:29]} 9. b3 {
[%emt 0:00:14]} b5 {[%emt 0:00:27]} 10. Bb2 {[%emt 0:06:19]} Nbd7 {
[%emt 0:03:44]} 11. Qc2 {[%emt 0:08:30]} bxc4 {[%emt 0:06:19]} 12. bxc4 {
[%emt 0:00:02]} Rb8 {[%emt 0:03:38]} 13. Rab1 {[%emt 0:05:08]} Nb6 {
[%emt 0:02:50]} 14. c5 {[%emt 0:00:48]} Nc4 {[%emt 0:00:08]} 15. Nxc4 {
[%emt 0:00:47]} Bxc4 {[%emt 0:00:10]} 16. Rfe1 {[%emt 0:16:37]} Qa5 {
[%emt 0:08:10]} 17. Bf1 {[%emt 0:01:55]} Qa6 {[%emt 0:03:01]} 18. e3 {
[%emt 0:02:32]} e5 {[%emt 0:03:53]} 19. Bxc4 {[%emt 0:03:50]} Qxc4 {
[%emt 0:00:32]} 20. Qe2 {[%emt 0:00:12]} Qxe2 {[%emt 0:01:05]} 21. Nxe2 {
[%emt 0:00:09]} e4 {[%emt 0:15:54]} 22. Bc3 {[%emt 0:00:49]} Nd7 {
[%emt 0:00:04]} 23. Ba5 {[%emt 0:03:21]} Rxb1 {[%emt 0:01:00]} 24. Rxb1 {
[%emt 0:00:01]} Rb8 {[%emt 0:00:02]} 25. Rxb8+ {[%emt 0:00:24]} Nxb8 {
[%emt 0:00:02]} 26. Kf1 {[%emt 0:11:47]} f5 {[%emt 0:01:26]} 27. h4 {
[%emt 0:00:26]} Kf7 {[%emt 0:00:06]} 28. a3 {[%emt 0:00:53]} g6 {[%emt 0:01:44]
} 29. Nc1 {[%emt 0:00:41]} h6 {[%emt 0:00:14]} 30. Ke2 {[%emt 0:00:58]} Ke6 {
[%emt 0:00:34]} 31. Nb3 {[%emt 0:00:43]} g5 {[%emt 0:00:52]} 32. hxg5 {
[%emt 0:00:02]} hxg5 {[%emt 0:00:03]} 33. Kd2 {[%emt 0:00:46]} Kd7 {
[%emt 0:01:06]} 34. Ke2 {[%emt 0:00:08]} Kc8 {[%emt 0:00:22]} 35. Be1 {
[%emt 0:01:02]} Nd7 {[%emt 0:00:24]} 36. Na5 {[%emt 0:00:19]} Kc7 {
[%emt 0:01:48]} 37. Bd2 {[%emt 0:00:32]} Nf6 {[%emt 0:00:21]} 38. Kf1 {
[%emt 0:00:18]} Nh5 {[%emt 0:02:06]} 39. Kg2 {[%emt 0:00:30]} Ng7 {
[%emt 0:00:06]} 40. g4 {[%emt 0:01:20]} Kd7 {[%emt 0:02:57]} 41. Kh3 {
[%emt 0:03:00]} Bd8 {[%emt 0:01:52]} 42. gxf5 {[%emt 0:00:12]} Nxf5 {
[%emt 0:00:04]} 43. Kg4 {[%emt 0:00:33]} Nh4 {[%emt 0:02:06]} 44. Nb3 {
[%emt 0:00:55]} Nf3 {[%emt 0:00:25]} 45. Bc3 {[%emt 0:00:43]} Nh2+ {
[%emt 0:03:37]} 46. Kh3 {[%emt 0:00:05]} Bc7 {[%emt 0:00:23]} 47. Nd2 {
[%emt 0:01:16]} g4+ {[%emt 0:00:52]} 48. Kg2 {[%emt 0:00:29]} Nf3 {
[%emt 0:00:34]} 49. Nb3 {[%emt 0:00:13]} Nh4+ {[%emt 0:01:07]} 50. Kf1 {
[%emt 0:00:03]} Nf5 {[%emt 0:00:35]} 51. Ke2 {[%emt 0:00:19]} Bd8 {
[%emt 0:01:05]} 52. Bd2 {[%emt 0:00:48]} Bf6 {[%emt 0:00:45]} 53. Bc3 {
[%emt 0:01:19]} Kc7 {[%emt 0:01:04]} 54. Bb4 {[%emt 0:00:11]} Bg5 {
[%emt 0:00:13]} 55. Bd2 {[%emt 0:00:05]} Nh4 {[%emt 0:00:15]} 56. Bc3 {
[%emt 0:00:29]} Ng6 {[%emt 0:01:39]} 57. Bb4 {[%emt 0:00:14]} Ne7 {
[%emt 0:00:05]} 58. Ba5+ {[%emt 0:00:18]} Kc8 {[%emt 0:00:14]} 59. a4 {
[%emt 0:01:03]} Nf5 {[%emt 0:01:19]} 60. Bd2 {[%emt 0:00:04]} Bd8 {
[%emt 0:02:03]} 61. Ba5 {[%emt 0:01:30]} Bh4 {[%emt 0:01:40]} 62. Bd2 {
[%emt 0:00:11]} Nh6 {[%emt 0:00:34]} 63. Bc3 {[%emt 0:00:22]} Nf7 {
[%emt 0:00:07]} 64. Bd2 {[%emt 0:00:25]} Ng5 {[%emt 0:00:18]} 65. Bc3 {
[%emt 0:00:33]} Nf3 {[%emt 0:02:36]} 66. Kf1 {[%emt 0:00:06]} Bd8 {
[%emt 0:00:21]} 67. Ke2 {[%emt 0:00:10]} Kb7 {[%emt 0:00:10]} 68. Ba5 {
[%emt 0:00:04]} Bh4 {[%emt 0:02:50]} 69. Bc3 {[%emt 0:00:04]} Ng5 {
[%emt 0:01:49]} 70. Na5+ {[%emt 0:00:06]} Kc7 {[%emt 0:00:02]} 71. Nb3 {
[%emt 0:00:06]} Ne6 {[%emt 0:00:14]} 72. Bb4 {[%emt 0:00:10]} Bg5 {
[%emt 0:03:06]} 73. Bc3 {[%emt 0:00:13]} Ng7 {[%emt 0:02:03]} 74. Bb4 {
[%emt 0:00:01]} Nf5 {[%emt 0:00:12]} 75. Bd2 {[%emt 0:00:00]} g3 {
[%emt 0:00:33]} 76. fxg3 {[%emt 0:00:03]} Nxg3+ {[%emt 0:00:05]} 77. Ke1 {
[%emt 0:00:13]} Bh4 {[%emt 0:00:21]} 78. Kd1 {[%emt 0:00:01]} Nf1 {
[%emt 0:00:16]} 79. Ke2 {[%emt 0:00:03]} Nxd2 {[%emt 0:01:19]} 80. Nxd2 {
[%emt 0:00:01]} Kb7 {[%emt 0:00:14]} 81. Nb3 {[%emt 0:00:01]} Ka6 {
[%emt 0:00:05]} 82. Kf1 {[%emt 0:00:01]} Bd8 {[%emt 0:00:21]} 83. Ke2 {
[%emt 0:00:01]} Ba5 {[%emt 0:00:07]} 84. Kd1 {[%emt 0:00:04]} Bb4 {
[%emt 0:00:17]} 85. Ke2 {[%emt 0:00:03]} Kb7 {[%emt 0:00:31]} 86. Kd1 {
[%emt 0:00:18]} Kc8 {[%emt 0:00:06]} 87. Nc1 {[%emt 0:00:03]} Kd7 {
[%emt 0:00:10]} 88. Ne2 {[%emt 0:00:14]} Ke6 {[%emt 0:00:21]} 89. Ng3 {
[%emt 0:00:14]} Ba5 {[%emt 0:00:04]} 90. Ke2 {[%emt 0:00:12]} Bc7 {
[%emt 0:00:47]} 91. Nf1 {[%emt 0:00:04]} Kf5 {[%emt 0:00:59]} 92. Nd2 {
[%emt 0:00:08]} Kg4 {[%emt 0:00:40]} 93. Nb3 {[%emt 0:00:02]} Kg3 {
[%emt 0:00:10]} 94. Nc1 {[%emt 0:00:04]} Ba5 {[%emt 0:02:06]} 95. Nb3 {
[%emt 0:00:05]} Bb4 {[%emt 0:00:06]} 96. Nc1 {[%emt 0:00:02]} Bc3 {
[%emt 0:01:42]} 97. Na2 {[%emt 0:00:12]} Ba5 {[%emt 0:00:18]} 98. Nc1 {
[%emt 0:00:01]} Kg2 {[%emt 0:00:54]} 99. Na2 {[%emt 0:00:07]} Kg1 {
[%emt 0:01:15]} 100. Nc1 {[%emt 0:00:01]} Bb4 {[%emt 0:00:19]} 101. Na2 {
[%emt 0:00:01]} Ba3 {[%emt 0:02:50]} 102. Nc3 {[%emt 0:00:01]} Kg2 {
[%emt 0:01:02]} 103. Na2 {[%emt 0:00:01]} Kg3 {[%emt 0:00:38]} 104. Nc3 {
[%emt 0:00:00]} Bb4 {[%emt 0:00:22]} 105. Na2 {[%emt 0:00:02]} Ba5 {
[%emt 0:00:23]} 106. Nc1 {[%emt 0:00:01]} Kg4 {[%emt 0:00:06]} 107. Nb3 {
[%emt 0:00:01]} Bb4 {[%emt 0:00:12]} 108. Nc1 {[%emt 0:00:01]} Kf5 {
[%emt 0:00:06]} 109. Nb3 {[%emt 0:00:00]} Ke6 {[%emt 0:00:07]} 110. Kd1 {
[%emt 0:00:01]} Kd7 {[%emt 0:00:04]} 111. Ke2 {[%emt 0:00:01]} Kc7 {
[%emt 0:00:14]} 112. Kd1 {[%emt 0:00:01]} Kb7 {[%emt 0:00:06]} 113. Ke2 {
[%emt 0:00:02]} Ka6 {[%emt 0:00:03]} 114. Kd1 {[%emt 0:00:02]} Ba5 {
[%emt 0:01:55]} 115. Ke2 {[%emt 0:00:01]} Bd8 {[%emt 0:00:07]} 116. Kd2 {
[%emt 0:00:00]} Bh4 {[%emt 0:00:11]} 117. Ke2 {[%emt 0:00:01]} Bg3 {
[%emt 0:00:01]} 118. Kf1 {[%emt 0:00:06]} Bh4 {[%emt 0:00:15]} 119. Ke2 {
[%emt 0:00:01]} Bg3 {[%emt 0:00:31]} 120. Kf1 {[%emt 0:00:00]} Bb8 {
[%emt 0:00:17]} 121. Kf2 {[%emt 0:00:04]} Bc7 {[%emt 0:00:03]} 122. Ke2 {
[%emt 0:00:03]} Kb7 {[%emt 0:00:19]} 123. Kd2 {[%emt 0:00:04]} a6 {
[%emt 0:00:12]} 124. Ke2 {[%emt 0:00:03]} Bg3 {[%emt 0:00:18]} 125. Nd2 {
[%emt 0:00:09]} Bc7 {[%emt 0:00:27]} 126. Nb3 {[%emt 0:00:05]} Kc8 {
[%emt 0:00:09]} 127. Kd2 {[%emt 0:00:15]} Kd7 {[%emt 0:00:11]} 128. Ke2 {
[%emt 0:00:08]} Ke6 {[%emt 0:00:06]} 129. Nc1 {[%emt 0:00:06]} Ba5 {
[%emt 0:00:40]} 130. Nb3 {[%emt 0:00:01]} Bb4 {[%emt 0:00:14]} 131. Nc1 {
[%emt 0:00:01]} Bc3 {[%emt 0:00:48]} 132. Na2 {[%emt 0:00:04]} Ba5 {
[%emt 0:00:10]} 133. Nc1 {[%emt 0:00:00]} Kf5 {[%emt 0:01:09]} 134. Nb3 {
[%emt 0:00:02]} Bc3 {[%emt 0:00:21]} 135. Nc1 {[%emt 0:00:01]} Bb2 {
[%emt 0:00:20]} 136. Nb3 {[%emt 0:00:05]} Bc3 {[%emt 0:00:25]} 137. Nc1 {
[%emt 0:00:00]} Kg4 {[%emt 0:00:08]} 138. Na2 {[%emt 0:00:01]} Ba5 {
[%emt 0:00:11]} 139. Nc1 {[%emt 0:00:00]} Kg3 {[%emt 0:01:20]} 140. Nb3 {
[%emt 0:00:03]} Bc3 {[%emt 0:01:10]} 141. Nc1 {[%emt 0:00:01]} Bb2 {
[%emt 0:00:46]} 142. Nb3 {[%emt 0:00:01]} Bc3 {[%emt 0:00:19]} 143. Nc1 {
[%emt 0:00:01]} Kg4 {[%emt 0:19:07]} 1/2-1/2

[Event "Cherry Blossom Classic"]
[Site "Dulles USA"]
[Date "2022.05.30"]
[Round "9.5"]
[White "Chiku-Ratte, Olivier-Kenta"]
[Black "Zlotnikov, Mikhail"]
[Result "1-0"]
[ECO "E73"]
[WhiteElo "2358"]
[BlackElo "2194"]
[PlyCount "79"]
[EventDate "2022.05.26"]
[EventType "swiss"]
[EventRounds "9"]
[EventCountry "USA"]
[Source "ChessMix"]
[SourceDate "2022.06.01"]
[TimeControl "5400+30"]

1. d4 Nf6 2. c4 g6 3. Nc3 Bg7 4. e4 d6 5. Be2 O-O 6. h4 c5 7. d5 e6 8. h5 exd5
9. exd5 Re8 10. Kf1 Nbd7 11. hxg6 fxg6 12. Nf3 a6 13. a4 Qc7 14. Bf4 Nh5 15.
Bh2 Nhf6 16. Qd2 Nf8 17. Bd3 Ng4 18. Bf4 Bf5 19. Bxf5 gxf5 20. Rh5 Qf7 21. Rh3
Rad8 22. Re1 Rxe1+ 23. Qxe1 h6 24. Qd2 Ng6 25. g3 Qf6 26. Kg2 N6e5 27. Qe2 Nxf3
28. Qxf3 Re8 29. Rh1 Qg6 30. Nd1 Ne5 31. Bxe5 Bxe5 32. Ne3 Rf8 33. Rh5 f4 34.
Ng4 Qxh5 35. Nf6+ Rxf6 36. Qxh5 fxg3 37. fxg3 Kg7 38. Qg4+ Rg6 39. Qd7+ Kf6 40.
g4 1-0